bitfinex/quotes_BTCUSD_20250108
["timestamp","ask_amount","ask_price","bid_price","bid_amount"]
[1736331351310,0.03227483,95592.0,95591.0,0.00542548]
[1736331351522,0.03296711,95592.0,95591.0,0.00542548]
[1736331351732,0.03296711,95592.0,95591.0,0.05444085]
[1736331351957,0.002,95592.0,95591.0,0.05444085]
[1736331352361,0.03096711,95596.0,95591.0,0.05444085]
[1736331352566,0.03096711,95596.0,95591.0,0.06092126]
[1736331352772,0.001,95592.0,95591.0,0.06092126]
[1736331352948,0.03196711,95592.0,95591.0,0.0796411]
[1736331353179,0.03196711,95592.0,95591.0,0.05444085]
[1736331354707,0.03096711,95592.0,95591.0,0.05444085]
[1736331355108,0.209192,95606.0,95591.0,0.05544085]
[1736331355109,0.209206,95600.0,95591.0,0.05544085]
[1736331355315,0.209206,95600.0,95592.0,0.079]
[1736331355539,0.03096711,95594.0,95592.0,0.079]
[1736331355720,0.24017011,95601.0,95593.0,0.00647804]
[1736331356261,0.209203,95601.0,95593.0,0.00647804]
[1736331356569,0.03096711,95594.0,95593.0,0.00647804]
[1736331356767,0.03096711,95599.0,95593.0,0.00647804]
[1736331356984,0.03096711,95600.0,95594.0,0.04170618]
[1736331357380,0.03096711,95600.0,95594.0,0.048182]
[1736331357584,0.03096711,95601.0,95595.0,0.10429976]
[1736331358026,0.03096711,95601.0,95595.0,0.11077344]
[1736331358233,0.03096711,95601.0,95596.0,0.02870059]
[1736331358371,0.03096711,95601.0,95597.0,0.10429976]
[1736331358567,0.03096711,95601.0,95597.0,0.11076915]
[1736331361868,0.03096711,95601.0,95597.0,0.11276915]
[1736331362476,0.03096711,95601.0,95597.0,0.11076915]
[1736331362675,0.03096711,95601.0,95598.0,0.10429976]
[1736331362887,0.03096711,95601.0,95598.0,0.20859952]
[1736331363087,0.03096711,95601.0,95599.0,0.00646511]
[1736331364472,0.03096711,95601.0,95600.0,0.05444]
[1736331364948,0.03096711,95601.0,95600.0,0.06114092]
[1736331365179,0.03096711,95601.0,95600.0,0.09118502]
[1736331366342,0.03096711,95601.0,95600.0,0.09318502]
[1736331367273,0.03096711,95601.0,95600.0,0.09118502]
[1736331367482,0.209186,95609.0,95601.0,0.0492]
[1736331367932,0.209177,95613.0,95602.0,0.11108373]
[1736331368308,0.209177,95613.0,95603.0,0.03777682]
[1736331368635,0.209177,95613.0,95604.0,0.00677969]
[1736331368861,0.418354,95613.0,95604.0,0.00677969]
[1736331369269,0.209177,95613.0,95604.0,0.00677969]
[1736331369926,0.20905109,95613.0,95604.0,0.00677969]
[1736331370114,0.209161,95620.0,95605.0,0.21948377]
[1736331370318,0.209172,95615.0,95605.0,0.21948377]
[1736331370598,0.209172,95615.0,95606.0,0.00677493]
[1736331370810,0.209172,95615.0,95607.0,0.10429976]
[1736331371175,0.209161,95620.0,95607.0,0.11107219]
[1736331371372,0.209161,95620.0,95608.0,1.54856482]
[1736331371577,0.209161,95620.0,95609.0,0.10429976]
[1736331371778,0.209161,95620.0,95609.0,0.11106791]
[1736331372013,0.209171,95616.0,95609.0,0.11106791]
[1736331372173,0.209171,95616.0,95610.0,1.5]
[1736331372369,0.209171,95616.0,95611.0,0.10429976]
[1736331372572,0.209171,95616.0,95612.0,0.00676173]
[1736331372994,0.209161,95620.0,95613.0,1.5]
[1736331373469,0.209161,95620.0,95613.0,1.50675958]
[1736331374461,0.209161,95620.0,95613.0,1.50875958]
[1736331374592,0.418323,95620.0,95614.0,0.10429976]
[1736331374805,0.418323,95620.0,95614.0,0.1110572]
[1736331375477,0.209172,95616.0,95614.0,0.1110572]
[1736331375994,0.209172,95616.0,95614.0,0.00875744]
[1736331376230,0.209172,95616.0,95615.0,1.5]
[1736331376635,0.209164,95619.0,95615.0,1.50714221]
[1736331377074,0.209145,95627.0,95616.0,0.14989976]
[1736331377274,0.209139,95630.0,95617.0,0.0782]
[1736331377459,0.418279,95630.0,95618.0,0.20859952]
[1736331377620,0.418279,95630.0,95619.0,0.05444]
[1736331377826,0.418279,95630.0,95620.0,0.10429976]
[1736331378023,0.418279,95630.0,95620.0,0.11143126]
[1736331378024,0.209139,95630.0,95620.0,0.11143126]
[1736331378233,0.0001706,95631.0,95621.0,0.10429976]
[1736331378440,0.209139,95630.0,95622.0,0.10429976]
[1736331378645,0.209139,95630.0,95622.0,0.11142698]
[1736331378878,0.0001706,95631.0,95622.0,0.11142698]
[1736331379032,0.209139,95630.0,95622.0,0.11142698]
[1736331379233,0.209139,95630.0,95623.0,0.07074285]
[1736331379434,0.209139,95630.0,95624.0,0.10429976]
[1736331379704,0.00031427,95631.0,95624.0,0.1114227]
[1736331380761,0.209139,95630.0,95624.0,0.1114227]
[1736331381168,0.209139,95630.0,95624.0,0.1134227]
[1736331381381,0.209139,95630.0,95625.0,0.04579147]
[1736331381610,0.00031427,95631.0,95627.0,0.1274]
[1736331382283,0.00031427,95631.0,95628.0,0.0071135]
[1736331383699,0.00031427,95631.0,95628.0,0.0091135]
[1736331384469,0.209139,95630.0,95628.0,0.0091135]
[1736331384681,0.209139,95630.0,95629.0,0.02866047]
[1736331384902,0.209139,95630.0,95629.0,0.03577183]
[1736331385268,0.00031427,95631.0,95629.0,0.03577183]
[1736331385452,0.209139,95630.0,95629.0,0.03577183]
[1736331385856,0.00031427,95631.0,95629.0,0.03577183]
[1736331385997,0.00031427,95631.0,95630.0,0.03152631]
[1736331386192,0.00031427,95631.0,95630.0,0.03863553]
[1736331387434,0.00031427,95631.0,95630.0,0.04063553]
[1736331397122,0.00031427,95631.0,95630.0,0.03863553]
[1736331397322,0.00031427,95631.0,95630.0,0.03963553]
[1736331398660,0.00031427,95631.0,95630.0,0.03863553]
[1736331398881,0.00031427,95631.0,95630.0,0.09291553]
[1736331399250,0.00031427,95631.0,95630.0,0.09491553]
[1736331400839,0.00031427,95631.0,95630.0,0.14493529]
[1736331401144,0.00031427,95631.0,95630.0,0.19921529]
[1736331402523,0.00031427,95631.0,95630.0,0.40835429]
[1736331402999,0.00031427,95631.0,95630.0,0.19921529]
[1736331410451,0.00031427,95631.0,95630.0,0.28001529]
[1736331411421,0.00031427,95631.0,95630.0,0.27801529]
[1736331411778,0.00031427,95631.0,95630.0,0.14593529]
[1736331412124,0.08031427,95631.0,95630.0,0.00827312]
[1736331412479,0.08031427,95631.0,95630.0,0.003]
[1736331412680,0.08031427,95631.0,95603.0,0.0461]
[1736331412681,0.08031427,95631.0,95603.0,0.06694083]
[1736331412902,0.209167,95618.0,95604.0,0.15841976]
[1736331413063,0.209167,95618.0,95605.0,0.05345696]
[1736331413265,0.209167,95618.0,95606.0,0.10429976]
[1736331413486,0.209167,95618.0,95606.0,0.10958155]
[1736331413691,0.209159,95621.0,95606.0,0.10958155]
[1736331415504,0.209159,95621.0,95606.0,0.11058155]
[1736331415750,0.209159,95621.0,95607.0,0.02850993]
[1736331415947,0.209159,95621.0,95608.0,0.15841976]
[1736331416173,0.209159,95621.0,95608.0,0.16369727]
[1736331417840,0.209159,95621.0,95608.0,0.16469727]
[1736331419260,0.209159,95621.0,95608.0,0.16369727]
[1736331419467,0.209159,95621.0,95609.0,0.05319372]
[1736331419651,0.209159,95621.0,95610.0,0.10429976]
[1736331420058,0.209159,95621.0,95610.0,0.10992058]
[1736331421428,0.209159,95621.0,95611.0,0.05412]
[1736331421631,0.209159,95621.0,95612.0,0.00561653]
[1736331421834,0.209159,95621.0,95613.0,0.021723]
[1736331422220,0.209159,95621.0,95613.0,0.02733739]
[1736331422821,0.209153,95624.0,95613.0,0.02733739]
[1736331423233,0.00031427,95631.0,95614.0,0.32899976]
[1736331423435,0.00031427,95631.0,95620.0,0.1261919]
[1736331423636,0.00031427,95631.0,95621.0,0.15038029]
[1736331423893,0.00031427,95631.0,95623.0,0.209153]
[1736331424098,0.00031427,95631.0,95628.0,0.209143]
[1736331424280,0.00031427,95631.0,95630.0,0.209139]
[1736331424483,0.00031427,95631.0,95630.0,0.49445876]
[1736331424745,0.00031427,95631.0,95630.0,0.58095597]
[1736331425375,0.00031427,95631.0,95630.0,0.83095597]
[1736331425580,0.0001706,95659.0,95639.0,0.459119]
[1736331425825,0.0001706,95659.0,95639.0,0.56897786]
[1736331426830,0.0001706,95659.0,95658.0,0.583878]
[1736331427035,0.00068048,95659.0,95658.0,0.80068556]
[1736331427240,0.00068048,95659.0,95658.0,0.80620373]
[1736331427446,0.00068048,95659.0,95658.0,2.30620373]
[1736331427868,0.0001706,95668.0,95667.0,0.209058]
[1736331428075,0.00031453,95668.0,95667.0,0.31335776]
[1736331428288,0.00031453,95668.0,95667.0,0.37559974]
[1736331428469,0.00031453,95668.0,95667.0,0.38109782]
[1736331429004,0.00031453,95668.0,95667.0,0.63109782]
[1736331429409,0.00031453,95668.0,95667.0,0.64116748]
[1736331429552,0.00031453,95668.0,95667.0,0.74116748]
[1736331429898,0.00031453,95668.0,95667.0,0.74616748]
[1736331435471,0.00031453,95668.0,95667.0,0.32703982]
[1736331435642,0.00031453,95668.0,95667.0,0.01049808]
[1736331435820,0.00031453,95668.0,95667.0,0.06457808]
[1736331436021,0.00031453,95668.0,95667.0,0.05908]
[1736331436183,0.00031453,95668.0,95667.0,0.06593316]
[1736331436383,0.00031453,95668.0,95667.0,0.07252648]
[1736331437100,0.00031453,95668.0,95667.0,0.01844648]
[1736331437300,0.00031453,95668.0,95653.0,0.1]
[1736331437528,0.00031453,95668.0,95667.0,0.01185316]
[1736331437730,0.00031453,95668.0,95667.0,0.005]
[1736331437930,0.00031453,95668.0,95667.0,0.05908]
[1736331438155,0.00031453,95668.0,95667.0,0.06593316]
[1736331438354,0.00031453,95668.0,95667.0,0.06752648]
[1736331438551,0.00031453,95668.0,95667.0,0.17182624]
[1736331440629,0.00031453,95668.0,95667.0,0.17482624]
[1736331441205,0.00031453,95668.0,95667.0,0.17182624]
[1736331441405,0.00031453,95668.0,95667.0,0.17482624]
[1736331441732,0.00031453,95668.0,95667.0,0.17490624]
[1736331441934,0.00031453,95668.0,95667.0,0.17190624]
[1736331442358,0.00031453,95668.0,95667.0,0.17490624]
[1736331442919,0.00031453,95668.0,95667.0,0.12074624]
[1736331443116,0.00031453,95668.0,95667.0,0.17490624]
[1736331443328,0.00031453,95668.0,95667.0,0.12074624]
[1736331443534,0.00031453,95668.0,95667.0,0.17490624]
[1736331444107,0.00031453,95668.0,95667.0,0.17190624]
[1736331444631,0.00031453,95668.0,95667.0,0.17490624]
[1736331445033,0.00031453,95668.0,95667.0,0.17190624]
[1736331445447,0.00031453,95668.0,95667.0,0.17490624]
[1736331445902,0.00031453,95668.0,95667.0,0.17190624]
[1736331446272,0.00031453,95668.0,95667.0,0.17490624]
[1736331447691,0.00031453,95668.0,95667.0,0.17190624]
[1736331448092,0.00031453,95668.0,95667.0,0.17490624]
[1736331448705,0.00031453,95668.0,95667.0,0.17190624]
[1736331448909,0.00031453,95668.0,95667.0,0.17490624]
[1736331449404,0.00031453,95668.0,95667.0,0.17190624]
[1736331450876,0.00031453,95668.0,95667.0,0.17590624]
[1736331451494,0.00031453,95668.0,95667.0,0.17190624]
[1736331452044,0.00031453,95668.0,95667.0,0.17590624]
[1736331452461,0.00031453,95668.0,95667.0,0.17190624]
[1736331452817,0.00031453,95668.0,95667.0,0.17590624]
[1736331454196,0.00031453,95668.0,95667.0,0.17515947]
[1736331454408,0.00031453,95668.0,95667.0,0.16905308]
[1736331454745,0.00031453,95668.0,95667.0,0.16505308]
[1736331455814,0.00031453,95668.0,95667.0,0.16905308]
[1736331456216,0.00031453,95668.0,95667.0,0.16505308]
[1736331456693,0.00031453,95668.0,95667.0,0.16905308]
[1736331457174,1.2,95889.0,95667.0,0.16905308]
[1736331457372,6.392e-05,95674.0,95668.0,0.12120507]
[1736331457581,0.209045,95673.0,95668.0,0.12120507]
[1736331459203,0.209045,95673.0,95668.0,0.12420507]
[1736331459411,6.392e-05,95674.0,95668.0,0.12420507]
[1736331459817,6.392e-05,95674.0,95668.0,0.12120507]
[1736331460166,6.392e-05,95674.0,95669.0,0.01819584]
[1736331460367,6.392e-05,95674.0,95670.0,0.10429976]
[1736331462150,6.392e-05,95674.0,95670.0,0.10729976]
[1736331463215,6.392e-05,95674.0,95670.0,0.10429976]
[1736331464235,6.392e-05,95674.0,95671.0,0.209049]
[1736331464449,6.392e-05,95674.0,95672.0,0.18007104]
[1736331465223,6.392e-05,95674.0,95673.0,0.209045]
[1736331465428,6.392e-05,95674.0,95673.0,0.10429976]
[1736331466349,6.392e-05,95674.0,95673.0,0.10729976]
[1736331467758,6.392e-05,95674.0,95673.0,0.10429976]
[1736331467966,6.392e-05,95674.0,95673.0,0.15974197]
[1736331468579,6.392e-05,95674.0,95673.0,0.15674197]
[1736331468895,6.392e-05,95674.0,95673.0,0.16074197]
[1736331469540,6.392e-05,95674.0,95673.0,0.49314197]
[1736331469742,6.392e-05,95674.0,95673.0,0.57547557]
[1736331469903,6.392e-05,95674.0,95673.0,2.17547557]
[1736331471086,6.392e-05,95674.0,95673.0,2.17147557]
[1736331471342,6.392e-05,95674.0,95673.0,2.12955557]
[1736331471556,6.392e-05,95674.0,95673.0,2.15029646]
[1736331471749,6.392e-05,95674.0,95673.0,2.46699726]
[1736331471950,0.0001706,95688.0,95677.0,0.3321]
[1736331472262,0.0001706,95688.0,95687.0,0.3321]
[1736331472393,0.00023453,95688.0,95687.0,0.43639976]
[1736331472593,0.00023453,95688.0,95687.0,0.46899031]
[1736331473041,0.00023453,95688.0,95687.0,0.61899031]
[1736331473257,0.0001706,95697.0,95696.0,0.4795]
[1736331473457,0.0001706,95697.0,95696.0,0.63787976]
[1736331473712,0.0001706,95697.0,95696.0,0.67044432]
[1736331474266,0.0451708,95707.0,95706.0,0.358973]
[1736331474470,0.04523473,95707.0,95706.0,0.54006776]
[1736331475100,0.0001708,95713.0,95712.0,0.33026]
[1736331475356,0.0001708,95713.0,95712.0,0.78455976]
[1736331476203,0.208879,95750.0,95722.0,0.358938]
[1736331476427,0.208879,95750.0,95722.0,0.6916407]
[1736331476928,0.208889,95745.0,95722.0,2.10913776]
[1736331477104,0.208889,95745.0,95722.0,2.26751752]
[1736331477330,0.208889,95745.0,95722.0,0.76751752]
[1736331480847,0.0001706,95723.0,95722.0,0.79317179]
[1736331481461,0.0001706,95723.0,95722.0,0.79830855]
[1736331481897,0.0001706,95723.0,95722.0,0.80330855]
[1736331483061,0.0001706,95723.0,95722.0,0.85330855]
[1736331483679,0.0001706,95723.0,95722.0,2.35330855]
[1736331484531,0.208838,95768.0,95755.0,0.208865]
[1736331484733,0.208838,95768.0,95730.0,0.15]
[1736331484734,0.208815,95779.0,95756.0,0.20011406]
[1736331484936,0.00032341,95764.0,95757.0,0.471763]
[1736331485142,0.00032341,95764.0,95759.0,0.208857]
[1736331485348,0.00032341,95764.0,95761.0,0.208853]
[1736331485575,0.00032341,95764.0,95763.0,0.208848]
[1736331485780,0.00032341,95764.0,95763.0,0.52492927]
[1736331485985,0.00032341,95764.0,95763.0,0.62492927]
[1736331486194,0.00032341,95764.0,95763.0,0.84752927]
[1736331486365,0.208748,95810.0,95769.0,0.558835]
[1736331486569,0.208748,95810.0,95769.0,0.66313476]
[1736331486815,0.208748,95810.0,95769.0,0.76743452]
[1736331486816,0.00067986,95770.0,95769.0,0.76743452]
[1736331487017,0.05,95812.0,95789.0,0.1]
[1736331487224,0.00023802,95809.0,95807.0,0.208751]
[1736331487434,0.00023802,95809.0,95808.0,0.10429976]
[1736331487609,0.00023802,95809.0,95808.0,0.10915309]
[1736331487824,0.00023802,95809.0,95808.0,0.16424656]
[1736331489758,0.00023802,95809.0,95808.0,0.42440204]
[1736331489960,0.00023802,95809.0,95808.0,0.47844204]
[1736331491060,0.00023802,95809.0,95808.0,0.16424656]
[1736331491308,0.00023802,95809.0,95808.0,0.22128656]
[1736331491539,0.00023802,95809.0,95808.0,0.21945713]
[1736331492046,0.00023802,95809.0,95808.0,0.21645713]
[1736331492295,0.00023802,95809.0,95808.0,0.21845713]
[1736331493059,0.00023802,95809.0,95808.0,0.16441713]
[1736331493294,0.00023802,95809.0,95808.0,0.21845713]
[1736331494131,0.00023802,95809.0,95808.0,0.21645713]
[1736331494311,0.00023802,95809.0,95808.0,0.21945713]
[1736331494776,0.00023802,95809.0,95808.0,0.21645713]
[1736331495201,0.00023802,95809.0,95808.0,0.21945713]
[1736331498158,0.00023802,95809.0,95808.0,0.21941713]
[1736331500085,0.00023802,95809.0,95808.0,0.16675032]
[1736331500522,0.00023802,95809.0,95808.0,0.00845056]
[1736331500730,0.20875,95808.0,95806.0,0.054]
[1736331500977,0.00130475,95807.0,95776.0,0.1]
[1736331501181,0.208757,95805.0,95778.0,0.208816]
[1736331501362,0.208774,95798.0,95779.0,0.19291316]
[1736331501567,0.00023802,95809.0,95779.0,0.34291316]
[1736331501774,0.208786,95792.0,95779.0,0.34291316]
[1736331501983,0.208775,95797.0,95779.0,0.34291316]
[1736331502220,0.00023802,95809.0,95780.0,0.264611]
[1736331502424,0.20877,95799.0,95781.0,0.19797795]
[1736331502582,0.20877,95799.0,95781.0,0.25377795]
[1736331503384,0.208763,95803.0,95782.0,0.208807]
[1736331503620,0.208774,95798.0,95783.0,0.10429976]
[1736331504091,0.208763,95803.0,95783.0,0.10429976]
[1736331504092,0.208763,95803.0,95784.0,0.208803]
[1736331504292,0.208763,95803.0,95786.0,0.208798]
[1736331504537,0.208763,95803.0,95787.0,0.10429976]
[1736331509226,0.417526,95803.0,95787.0,0.10429976]
[1736331509533,0.208773,95798.0,95787.0,0.10429976]
[1736331510381,0.00023802,95809.0,95787.0,0.10429976]
[1736331510382,0.208764,95802.0,95787.0,0.10429976]
[1736331510582,0.417529,95802.0,95788.0,0.07452722]
[1736331510753,0.417529,95802.0,95789.0,0.10429976]
[1736331511338,0.208764,95802.0,95790.0,0.0558]
[1736331511560,0.208787,95791.0,95790.0,0.10429976]
[1736331511846,0.208787,95791.0,95790.0,0.16009976]
[1736331512028,0.208787,95791.0,95790.0,0.17610974]
[1736331512751,0.208787,95791.0,95790.0,0.17710974]
[1736331513104,0.208787,95791.0,95790.0,0.16109976]
[1736331513857,0.208787,95791.0,95790.0,0.001]
[1736331514275,0.20879,95790.0,95763.0,0.15]
[1736331514483,0.208812,95780.0,95765.0,0.15]
[1736331514687,0.208812,95780.0,95766.0,0.15111365]
[1736331514917,0.208822,95776.0,95766.0,0.15111365]
[1736331515122,0.208818,95778.0,95766.0,0.15111365]
[1736331515445,0.208818,95778.0,95767.0,0.0558]
[1736331515647,0.208818,95778.0,95768.0,0.12965113]
[1736331518665,0.0787,95801.0,95769.0,0.208835]
[1736331518905,0.00015269,95798.0,95770.0,0.10429976]
[1736331519109,0.208806,95783.0,95770.0,0.10429976]
[1736331519503,0.208806,95783.0,95771.0,0.0558]
[1736331519778,0.208806,95783.0,95772.0,0.12752626]
[1736331519987,0.208807,95782.0,95772.0,0.12752626]
[1736331520260,0.208798,95787.0,95772.0,0.12752626]
[1736331520476,0.208798,95787.0,95773.0,0.0558]
[1736331520698,0.208798,95787.0,95774.0,0.10429976]
[1736331520966,0.208807,95783.0,95775.0,0.04185136]
[1736331523196,0.208816,95778.0,95775.0,0.04185136]
[1736331523485,0.208816,95778.0,95768.0,0.02535137]
[1736331523486,0.078,95779.0,95776.0,0.0558]
[1736331523683,0.20882,95776.0,95760.0,0.15672]
[1736331523917,0.00130518,95775.0,95761.0,0.19665856]
[1736331524155,0.208818,95777.0,95761.0,0.19665856]
[1736331524376,0.208833,95771.0,95761.0,0.19665856]
[1736331524854,0.208833,95771.0,95761.0,0.14085856]
[1736331525101,0.208833,95771.0,95762.0,0.0558]
[1736331525358,0.208833,95771.0,95763.0,0.13963762]
[1736331528097,0.208833,95771.0,95763.0,0.14063762]
[1736331536300,0.208822,95775.0,95763.0,0.14063762]
[1736331536301,0.208842,95766.0,95763.0,0.14063762]
[1736331536505,0.208842,95766.0,95764.0,0.05616]
[1736331537138,0.208827,95773.0,95764.0,0.05616]
[1736331537364,0.023,95770.0,95765.0,0.03535176]
[1736331538918,0.023,95770.0,95765.0,0.03735176]
[1736331540294,0.20696101,95767.0,95765.0,0.03735176]
[1736331540547,0.17117039,95767.0,95765.0,0.03735176]
[1736331541306,0.17117039,95767.0,95765.0,0.03535176]
[1736331541537,0.17117039,95767.0,95765.0,0.002]
[1736331541666,0.00130523,95770.0,95765.0,0.002]
[1736331541889,0.00130523,95770.0,95766.0,0.05616]
[1736331542120,0.208835,95769.0,95766.0,0.05616]
[1736331542762,0.023,95772.0,95766.0,0.05616]
[1736331542997,0.00130522,95771.0,95767.0,0.01604598]
[1736331544992,0.00130522,95771.0,95767.0,0.01704598]
[1736331547525,0.00130523,95774.0,95767.0,0.01704598]
[1736331547764,0.02430523,95774.0,95767.0,0.01704598]
[1736331550673,0.023,95772.0,95768.0,0.01765057]
[1736331550902,0.00130523,95771.0,95768.0,0.01765057]
[1736331551379,0.208833,95770.0,95768.0,0.01765057]
[1736331551861,0.208833,95770.0,95769.0,0.01781103]
[1736331553571,0.023,95772.0,95769.0,0.01781103]
[1736331553834,0.00130523,95771.0,95769.0,0.01781103]
[1736331554836,0.00130523,95771.0,95770.0,0.00716963]
[1736331555250,0.00130523,95771.0,95769.0,0.01781103]
[1736331555471,0.00130523,95771.0,95770.0,0.01782708]
[1736331555686,0.00130523,95771.0,95770.0,0.02499829]
[1736331555890,0.00130523,95771.0,95770.0,0.01782708]
[1736331556314,0.023,95772.0,95770.0,0.01782708]
[1736331556947,0.02430523,95772.0,95770.0,0.01782708]
[1736331557102,0.02430523,95772.0,95771.0,0.00739871]
[1736331559538,0.02430523,95772.0,95771.0,0.06355871]
[1736331561743,0.02430523,95772.0,95771.0,0.06279871]
[1736331562342,0.00130523,95772.0,95771.0,0.06279871]
[1736331562548,0.0808,95796.0,95771.0,0.16709847]
[1736331562766,0.0808,95796.0,95772.0,0.34441132]
[1736331562767,0.208781,95794.0,95772.0,0.34441132]
[1736331562974,0.023,95791.0,95772.0,0.34957288]
[1736331563885,0.208785,95792.0,95772.0,0.34957288]
[1736331564100,0.023,95790.0,95772.0,0.34957288]
[1736331564336,0.00130501,95789.0,95773.0,0.07491136]
[1736331564542,0.00130501,95789.0,95774.0,0.10429976]
[1736331564733,0.00130501,95789.0,95774.0,0.10945701]
[1736331565379,0.00130501,95789.0,95774.0,0.00515725]
[1736331565569,0.208818,95777.0,95775.0,0.0554]
[1736331565713,0.02430518,95776.0,95775.0,0.0554]
[1736331565914,0.02430518,95776.0,95775.0,0.06055512]
[1736331566548,0.02430518,95776.0,95775.0,0.00515512]
[1736331566747,0.02430518,95776.0,95775.0,0.06055512]
[1736331566923,0.02430518,95776.0,95775.0,0.0554]
[1736331571924,0.02430518,95776.0,95758.0,0.0763]
[1736331572103,0.00130518,95776.0,95759.0,0.15969976]
[1736331572309,0.00130518,95776.0,95760.0,0.02809998]
[1736331572525,0.023,95774.0,95761.0,0.10429976]
[1736331572740,0.023,95774.0,95761.0,0.10948481]
[1736331573708,0.023,95772.0,95761.0,0.10948481]
[1736331574290,0.023,95774.0,95761.0,0.10948481]
[1736331574501,0.023,95774.0,95770.0,0.00072242]
[1736331576169,0.208816,95779.0,95770.0,0.00072242]
[1736331576828,0.023,95778.0,95770.0,0.00072242]
[1736331577543,0.208818,95777.0,95770.0,0.00072242]
[1736331578024,0.208805,95784.0,95771.0,0.10429976]
[1736331578233,0.208805,95784.0,95772.0,0.01156528]
[1736331578439,0.208807,95782.0,95773.0,0.18509976]
[1736331578848,0.208807,95782.0,95773.0,0.19025919]
[1736331579400,0.21011409,95781.0,95773.0,0.19025919]
[1736331579820,0.41892309,95781.0,95773.0,0.19025919]
[1736331580136,0.41892309,95781.0,95774.0,0.02025469]
[1736331580372,0.41892309,95781.0,95774.0,0.12455445]
[1736331580541,0.41892309,95781.0,95775.0,0.00515516]
[1736331580949,0.21011409,95781.0,95775.0,0.00515516]
[1736331581250,0.208809,95781.0,95775.0,0.00515516]
[1736331581427,0.208809,95781.0,95776.0,0.02227973]
[1736331581855,0.208809,95781.0,95777.0,0.00515079]
[1736331582056,0.208809,95781.0,95778.0,0.0554]
[1736331582266,0.208809,95781.0,95778.0,0.06054865]
[1736331583121,0.208809,95781.0,95778.0,0.00514865]
[1736331583317,0.208809,95781.0,95779.0,0.07790934]
[1736331583728,0.208809,95781.0,95780.0,0.00514439]
[1736331584151,0.208809,95781.0,95779.0,0.07790934]
[1736331584391,0.231809,95781.0,95780.0,0.06054439]
[1736331584599,0.231809,95781.0,95780.0,0.0554]
[1736331585015,0.231809,95781.0,95780.0,0.0564]
[1736331585604,0.231809,95781.0,95780.0,0.06104]
[1736331586224,0.231809,95781.0,95780.0,0.00564]
[1736331590735,0.231809,95781.0,95778.0,0.0554]
[1736331590736,0.208814,95779.0,95778.0,0.0554]
[1736331590943,0.231814,95779.0,95778.0,0.0554]
[1736331593369,0.208809,95781.0,95763.0,0.0769]
[1736331593370,0.208831,95771.0,95763.0,0.0769]
[1736331593573,0.208831,95771.0,95770.0,0.05540242]
[1736331600573,0.20872083,95771.0,95770.0,0.05540242]
[1736331600788,0.20872083,95771.0,95770.0,0.06863266]
[1736331601164,0.208824,95775.0,95770.0,0.06863266]
[1736331601367,0.208827,95773.0,95770.0,0.06863266]
[1736331601541,0.208827,95773.0,95771.0,0.0051646]
[1736331601754,0.208827,95773.0,95770.0,0.06863266]
[1736331602011,0.208827,95773.0,95771.0,0.00686327]
[1736331602861,0.208831,95771.0,95770.0,0.00072242]
[1736331603148,0.559331,95771.0,95770.0,0.00072242]
[1736331603361,0.709331,95771.0,95770.0,0.00072242]
[1736331605737,0.791531,95771.0,95770.0,0.00072242]
[1736331606381,0.89583076,95771.0,95770.0,0.00072242]
[1736331606583,0.99583076,95771.0,95770.0,4.2e-07]
[1736331607429,1.09583076,95771.0,95770.0,4.2e-07]
[1736331609436,0.99583076,95771.0,95770.0,4.2e-07]
[1736331609618,1.09583076,95771.0,95770.0,4.2e-07]
[1736331610037,1.09783076,95771.0,95770.0,4.2e-07]
[1736331614195,1.09583076,95771.0,95770.0,4.2e-07]
[1736331614560,1.09783076,95771.0,95770.0,4.2e-07]
[1736331614985,1.09583076,95771.0,95770.0,4.2e-07]
[1736331615186,1.09783076,95771.0,95770.0,4.2e-07]
[1736331615567,0.99783076,95771.0,95770.0,4.2e-07]
[1736331615790,1.09783076,95771.0,95770.0,4.2e-07]
[1736331615995,0.89783076,95771.0,95770.0,4.2e-07]
[1736331616197,0.99783076,95771.0,95770.0,4.2e-07]
[1736331616623,0.99583076,95771.0,95770.0,4.2e-07]
[1736331617051,0.99783076,95771.0,95770.0,4.2e-07]
[1736331617223,0.538331,95771.0,95770.0,4.2e-07]
[1736331617653,0.536331,95771.0,95770.0,4.2e-07]
[1736331617857,0.538331,95771.0,95770.0,4.2e-07]
[1736331618433,0.709331,95771.0,95770.0,4.2e-07]
[1736331619719,0.711331,95771.0,95770.0,4.2e-07]
[1736331620339,0.709331,95771.0,95770.0,4.2e-07]
[1736331620542,0.538331,95771.0,95770.0,0.07570042]
[1736331620789,0.538331,95771.0,95770.0,0.08874246]
[1736331621404,0.559331,95771.0,95770.0,0.08874246]
[1736331621611,0.561331,95771.0,95770.0,0.08874246]
[1736331622592,0.561331,95771.0,95770.0,0.14290246]
[1736331623023,0.559331,95771.0,95770.0,0.14290246]
[1736331623444,0.560331,95771.0,95770.0,0.14290246]
[1736331623800,0.559331,95771.0,95770.0,0.14290246]
[1736331624202,0.560331,95771.0,95770.0,0.14290246]
[1736331625006,0.559331,95771.0,95770.0,0.14290246]
[1736331626310,0.560331,95771.0,95770.0,0.14290246]
[1736331626901,0.559331,95771.0,95770.0,0.14290246]
[1736331627134,0.560331,95771.0,95770.0,0.14290246]
[1736331627715,0.559331,95771.0,95770.0,0.14290246]
[1736331627919,0.560331,95771.0,95770.0,0.14290246]
[1736331630322,1.081411,95771.0,95770.0,0.14290246]
[1736331630528,1.058411,95771.0,95770.0,0.14290246]
[1736331630737,1.059411,95771.0,95770.0,0.14290246]
[1736331631138,1.081411,95771.0,95770.0,0.14290246]
[1736331631348,1.081411,95771.0,95770.0,0.18930246]
[1736331631548,1.082411,95771.0,95770.0,0.18930246]
[1736331631898,1.081411,95771.0,95770.0,0.18930246]
[1736331633456,1.082411,95771.0,95770.0,0.18930246]
[1736331633991,1.081411,95771.0,95770.0,0.18930246]
[1736331636444,1.081411,95771.0,95770.0,0.29360222]
[1736331636748,1.081411,95771.0,95770.0,0.30542117]
[1736331637652,1.081411,95771.0,95770.0,0.30642117]
[1736331641895,0.753911,95771.0,95770.0,0.30642117]
[1736331644840,0.753911,95771.0,95770.0,0.25226117]
[1736331644996,0.753911,95771.0,95770.0,0.30642117]
[1736331651088,0.52208,95771.0,95770.0,0.30642117]
[1736331651459,0.54508,95771.0,95770.0,0.29460222]
[1736331651665,0.54508,95771.0,95770.0,0.30642118]
[1736331661268,0.52208,95771.0,95770.0,0.30642118]
[1736331662126,0.52208,95771.0,95770.0,0.25226118]
[1736331662331,0.52208,95771.0,95770.0,0.33899871]
[1736331662986,0.52208,95771.0,95770.0,0.33799871]
[1736331663703,0.52208,95771.0,95770.0,0.44099871]